fUST/lending_fUST_20250914
["ID","MTS","AMOUNT","RATE_DAILY","PERIOD"]
[385383777,1757805041389,-151.0,0.00024657,7]
[385383778,1757805041397,-480.0,0.00024657,3]
[385383779,1757805041407,-697.64,0.00024657,3]
[385383780,1757805041416,-480.0,0.00024657,3]
[385383781,1757805041426,-480.0,0.00024657,3]
[385383782,1757805041434,-480.0,0.00024657,3]
[385383783,1757805041443,-480.0,0.00024657,3]
[385383784,1757805041452,-349.52111818,0.00024657,3]
[385383785,1757805041461,-480.0,0.00024657,3]
[385383786,1757805041470,-480.0,0.00024657,3]
[385383787,1757805041479,-1621.19,0.00024657,3]
[385383788,1757805041488,-480.0,0.00024657,3]
[385383789,1757805041498,-480.0,0.00024657,3]
[385383790,1757805041506,-2932.77,0.00024657,3]
[385383791,1757805041515,-714.8,0.00024657,3]
[385383792,1757805041524,-480.0,0.00024657,3]
[385383793,1757805041533,-630.0,0.00024657,3]
[385383794,1757805041544,-480.0,0.00024657,3]
[385383795,1757805041558,-8204.08,0.00024657,3]
[385383796,1757805041568,-480.0,0.00024657,3]
[385383797,1757805041577,-480.0,0.00024657,3]
[385383798,1757805041586,-480.0,0.00024657,3]
[385383799,1757805041595,-480.0,0.00024657,3]
[385383800,1757805041604,-480.0,0.00024657,3]
[385383801,1757805041613,-674.99,0.00024657,3]
[385383802,1757805041623,-480.0,0.00024657,3]
[385383803,1757805041633,-480.0,0.00024657,3]
[385383804,1757805041643,-1797.78,0.00024657,3]
[385383805,1757805041652,-8407.33,0.00024657,3]
[385383806,1757805041661,-955.0,0.00024657,3]
[385383807,1757805041670,-500.0,0.00024657,3]
[385383808,1757805041680,-480.0,0.00024657,3]
[385383809,1757805041690,-480.0,0.00024657,3]
[385383810,1757805041699,-151.533464,0.00024657,7]
[385383811,1757805041709,-480.0,0.00024657,3]
[385383812,1757805041719,-480.0,0.00024657,3]
[385383813,1757805041728,-480.0,0.00024657,3]
[385383814,1757805041738,-480.0,0.00024657,3]
[385383815,1757805041747,-480.0,0.00024657,3]
[385383816,1757805041757,-480.90646828,0.00024657,3]
[385383817,1757805041767,-480.0,0.00024657,3]
[385383818,1757805041777,-151.0,0.00024657,7]
[385383819,1757805041787,-480.0,0.00024657,3]
[385383820,1757805041801,-2651.76,0.00024657,3]
[385383821,1757805041811,-4053.44,0.00024657,3]
[385383822,1757805041821,-480.0,0.00024657,3]
[385383823,1757805041830,-480.0,0.00024657,3]
[385383824,1757805041839,-2732.5,0.00024657,3]
[385383825,1757805041848,-480.0,0.00024657,3]
[385383826,1757805041859,-480.0,0.00024657,3]
[385383827,1757805041869,-480.0,0.00024657,3]
[385383828,1757805041879,-480.0,0.00024657,3]
[385383829,1757805041888,-480.0,0.00024657,3]
[385383830,1757805041899,-480.0,0.00024657,3]
[385383831,1757805041908,-614.22,0.00024657,3]
[385383832,1757805041919,-480.0,0.00024657,3]
[385383833,1757805041928,-480.0,0.00024657,3]
[385383834,1757805041939,-410.49221079,0.00024657,3]
[385383835,1757805041952,-480.0,0.00024657,3]
[385383836,1757805041962,-480.0,0.00024657,3]
[385383837,1757805041971,-480.0,0.00024657,3]
[385383838,1757805041981,-590.33,0.00024657,3]
[385383839,1757805041990,-480.0,0.00024657,3]
[385383840,1757805041999,-480.0,0.00024657,3]
[385383841,1757805042008,-480.0,0.00024657,3]
[385383842,1757805042018,-151.0,0.00024657,7]
[385383843,1757805042027,-151.0,0.00024657,7]
[385383844,1757805042036,-151.0,0.00024657,7]
[385383845,1757805042045,-151.0,0.00024657,7]
[385383846,1757805042054,-151.0,0.00024657,7]
[385383847,1757805042063,-1122.38,0.00024657,3]
[385383848,1757805042072,-480.0,0.00024657,3]
[385383849,1757805042081,-480.0,0.00024657,3]
[385383850,1757805042090,-262.03649578,0.00024657,3]
[385383851,1757805042099,-487.80940824,0.00024657,3]
[385383852,1757805042110,-480.0,0.00024657,3]
[385383853,1757805042120,-480.0,0.00024657,3]
[385383854,1757805042130,-480.0,0.00024657,3]
[385383855,1757805042140,-5739.24,0.00024657,3]
[385383856,1757805042151,-1269.22,0.00024657,3]
[385383857,1757805042161,-702.78,0.00024657,3]
[385383858,1757805042172,-480.0,0.00024657,3]
[385383859,1757805042182,-480.0,0.00024657,3]
[385383860,1757805042192,-280.0,0.00024657,3]
[385383861,1757805042201,-485.10751566,0.00024657,3]
[385383862,1757805042211,-480.0,0.00024657,3]
[385383863,1757805042222,-480.0,0.00024657,3]
[385383864,1757805042232,-480.0,0.00024657,3]
[385383865,1757805042241,-1700.57,0.00024657,3]
[385383866,1757805042251,-633.07,0.00024657,3]
[385383867,1757805042260,-1515.73,0.00024657,3]
[385383868,1757805042269,-480.0,0.00024657,3]
[385383869,1757805042278,-3080.44,0.00024657,3]
[385383870,1757805042287,-480.0,0.00024657,3]
[385383871,1757805042297,-480.0,0.00024657,3]
[385383872,1757805042307,-4754.47,0.00024657,3]
[385383873,1757805042318,-480.0,0.00024657,3]
[385383874,1757805042329,-480.0,0.00024657,3]
[385383875,1757805042338,-480.0,0.00024657,3]
[385383876,1757805042349,-523.69,0.00024657,3]
[385383877,1757805042359,-480.0,0.00024657,3]
[385383878,1757805042369,-1002.5,0.00024657,3]
[385383879,1757805042378,-480.0,0.00024657,3]
[385383880,1757805042388,-590.8,0.00024657,3]
[385383881,1757805042397,-480.0,0.00024657,3]
[385383882,1757805042407,-481.4254302,0.00024657,3]
[385383883,1757805042416,-151.0,0.00024657,7]
[385383884,1757805042425,-480.0,0.00024657,3]
[385383885,1757805042435,-151.0,0.00024657,7]
[385383886,1757805042444,-550.26,0.00024657,3]
[385383887,1757805042453,-775.63,0.00024657,3]
[385383888,1757805042462,-480.0,0.00024657,3]
[385383889,1757805042472,-480.0,0.00024657,3]
[385383890,1757805042481,-480.0,0.00024657,3]
[385383891,1757805042490,-480.0,0.00024657,3]
[385383892,1757805042499,-500.17587077,0.00024657,3]
[385383894,1757805043231,-147.85412923,0.00024657,3]
[385383895,1757805043241,-480.0,0.00024657,3]
[385383896,1757805043250,-480.0,0.00024657,3]
[385383897,1757805043259,-258.49438003,0.00024657,3]
[385383898,1757805043313,-221.50561997,0.00024657,3]
[385383899,1757805043471,-480.0,0.00024657,3]
[385383900,1757805043481,-151.0,0.00024657,7]
[385383901,1757805043490,-964.34,0.00024657,3]
[385383902,1757805043500,-933.8,0.00024657,3]
[385383903,1757805043509,-480.0,0.00024657,3]
[385383904,1757805043518,-5489.49,0.00024657,3]
[385383905,1757805043527,-480.0,0.00024657,3]
[385383906,1757805043537,-151.0,0.00024657,7]
[385383907,1757805043546,-151.0,0.00024657,7]
[385383908,1757805043557,-155.941583,0.00024657,7]
[385383909,1757805043566,-480.96037101,0.00024657,3]
[385383910,1757805043575,-15621.42,0.00024657,3]
[385383911,1757805043585,-480.0,0.00024657,3]
[385383912,1757805043595,-480.0,0.00024657,3]
[385383913,1757805043604,-480.0,0.00024657,3]
[385383914,1757805043613,-480.0,0.00024657,3]
[385383915,1757805043622,-151.0,0.00024657,7]
[385383916,1757805043631,-480.0,0.00024657,3]
[385383917,1757805043640,-480.0,0.00024657,3]
[385383918,1757805043650,-480.0,0.00024657,3]
[385383919,1757805043659,-480.0,0.00024657,3]
[385383920,1757805043668,-480.0,0.00024657,3]
[385383921,1757805043678,-480.0,0.00024657,3]
[385383922,1757805043688,-480.0,0.00024657,3]
[385383923,1757805043697,-157.0,0.00024658,2]
[385383924,1757805043706,-500.0,0.00024673,2]
[385383925,1757805043715,-500.0,0.00024673,2]
[385383926,1757805043724,-500.0,0.00024673,2]
[385383927,1757805043734,-500.0,0.00024673,2]
[385383928,1757805043743,-1000.0,0.0002468,2]
[385383929,1757805043752,-160.0,0.000247,2]
[385383930,1757805043762,-272.62,0.00024714,2]
[385383931,1757805043771,-383.9232,0.000248,2]
[385383932,1757805043781,-1701.65082417,0.00024896,2]
[385383933,1757805043790,-63031.06597489,0.000249,2]
[385383977,1757805045078,-480.0,0.00024657,3]
[385383978,1757805045089,-2826.87817231,0.000249,2]
[385383979,1757805045100,-468.942,0.000249,2]
[385384018,1757805046329,-517.57280667,0.00024657,3]
[385384019,1757805046341,-258.67234176,0.00024657,3]
[385384020,1757805046441,-2469.15485157,0.00024657,3]
[385384021,1757805046451,-151.0,0.00024657,7]
[385384022,1757805046460,-480.0,0.00024657,3]
[385384023,1757805046469,-6142.93,0.000249,2]
[385384026,1757805738634,10000.0,0.00018221,2]
[385384027,1757805744975,10000.0,0.00018221,2]
[385384028,1757805750942,10000.0,0.00018221,2]
[385384029,1757805757524,10000.0,0.00018221,2]
[385384030,1757805764216,10000.0,0.00018221,2]
[385384031,1757805770652,10000.0,0.00018221,2]
[385384032,1757805778235,10000.0,0.00018221,2]
[385384033,1757805787584,10000.0,0.00018221,2]
[385384034,1757805801035,500.0,0.000182,2]
[385384035,1757805803922,8842.0,0.00018221,2]
[385384036,1757805811269,500.0,0.000182,2]
[385384037,1757805822620,500.0,0.000182,2]
[385384038,1757805833383,500.0,0.000182,2]
[385384040,1757805853964,159.34083979,0.000182,2]
[385384071,1757806232953,-1468.38005297,0.000199,2]
[385384073,1757806232963,-1468.38005272,0.00021149,2]
[385384075,1757806232973,-1468.38005272,0.00022398,2]
[385384077,1757806232983,-161.55,0.00022781,2]
[385384079,1757806232992,-300.0,0.00023287,2]
[385384082,1757806233002,-300.0,0.00023287,2]
[385384084,1757806233012,-300.0,0.00023287,2]
[385384086,1757806233021,-300.0,0.00023287,2]
[385384088,1757806233031,-1200.0,0.00023287,2]
[385384090,1757806233041,-3801.52348766,0.00023288,2]
[385384092,1757806233053,-1397.39683539,0.00023288,2]
[385384094,1757806233065,-468.6273283,0.00023288,2]
[385384097,1757806233081,-338.91554705,0.00023288,2]
[385384251,1757806238560,-490.21663662,0.00023288,2]
[385384253,1757806240630,-2140.9576,0.00023288,2]
[385384266,1757806243852,-1374.99916399,0.00023288,2]
[385384280,1757806609171,2000.0,0.00027397,120]
[385384281,1757806619922,2000.0,0.00027397,120]
[385384282,1757806629335,2000.0,0.00027397,120]
[385384283,1757806638610,2000.0,0.00027397,120]
[385384284,1757806648104,2000.0,0.00027397,120]
[385384285,1757806656765,2000.0,0.00027397,120]
[385384286,1757806686157,1647.32,0.00027397,120]
[385384329,1757807431820,-643.17025537,0.000199,2]
[385384331,1757807431832,-678.37179231,0.000199,2]
[385384333,1757807431841,-239.65457977,0.00021149,2]
[385384342,1757807431928,-1081.88746767,0.00021149,2]
[385384344,1757807431938,-1321.54204744,0.00022398,2]
[385384346,1757807431948,-300.0,0.00023153,2]
[385384349,1757807431958,-776.0,0.00023153,2]
[385384352,1757807431967,-1200.0,0.00023154,2]
[385384354,1757807431976,-13338.4963255,0.00023155,2]
[385384356,1757807431985,-155.06785267,0.00023188,2]
[385384358,1757807431995,-592.32327007,0.00023287,2]
[385384360,1757807432004,-24900.0,0.00023288,2]
[385384362,1757807432013,-264.39640151,0.00023288,3]
[385384364,1757807432023,-402.279378,0.000235,2]
[385384366,1757807432034,-169.1944667,0.000235,2]
[385384368,1757807432044,-199.6826772,0.000235,2]
[385384370,1757807432054,-152.445754,0.0002352,5]
[385384372,1757807432063,-1321.54204744,0.00023647,2]
[385384374,1757807432073,-152.445754,0.0002367,10]
[385384376,1757807432082,-152.445754,0.00023742,7]
[385384378,1757807432091,-152.445754,0.00023749,2]
[385384380,1757807432101,-1629.154184,0.000238,2]
[385384382,1757807432110,-188.4352839,0.00024192,2]
[385384384,1757807432119,-188.5028093,0.00024192,2]
[385384386,1757807432128,-160.0,0.00024237,2]
[385384388,1757807432137,-1000.0,0.000243,2]
[385384390,1757807432146,-155.06785267,0.00024304,2]
[385384392,1757807432156,-500.0,0.00024521,2]
[385384394,1757807432165,-500.0,0.00024521,2]
[385384395,1757807432174,-500.0,0.00024521,2]
[385384397,1757807432184,-1391.61505195,0.00024536,2]
[385384472,1757807445957,-1200.45262,0.00024536,2]
[385384473,1757807445969,-4909.06298013,0.00024536,2]
[385384474,1757807485006,800.0,0.0002739,120]
[385384475,1757807507887,800.0,0.0002739,120]
[385384479,1757808177670,214.0,0.00027397,120]
[385384530,1757808632404,-300.0,0.00019406,2]
[385384532,1757808632413,-204.1524767,0.000198,2]
[385384534,1757808632422,-300.0,0.00023286,2]
[385384536,1757808632432,-1194.0,0.00023286,2]
[385384538,1757808632441,-859.0,0.00023287,2]
[385384540,1757808632450,-6287.363401,0.00023288,2]
[385384542,1757808632459,-1469.9841223,0.00023341,2]
[385384584,1757808638090,-1152.93204788,0.000199,2]
[385384586,1757808638100,-1152.93204787,0.00021149,2]
[385384588,1757808638109,-1152.93204787,0.00022398,2]
[385384590,1757808638119,-8494.40340168,0.00023341,2]
[385384592,1757808638130,-325.21779113,0.00023341,2]
[385384594,1757808638141,-3237.89734047,0.00023341,2]
[385384597,1757808638156,-8680.87867832,0.00023341,2]
[385384599,1757808638165,-3283.38430759,0.00023433,2]
[385384615,1757808638305,-561.91775845,0.00023433,2]
[385384617,1757808638317,-1154.69793396,0.00023433,2]
[385384618,1757808638327,-1339.97655096,0.00023433,2]
[385384669,1757808640191,-1322.37634925,0.00023433,2]
[385384743,1757808646254,-757.65152273,0.00022616,8]
[385384745,1757808646264,-909.18182727,0.00022843,10]
[385384747,1757808646274,-909.18182727,0.00023069,10]
[385384748,1757808646283,-890.2332435,0.00023295,10]
[385384750,1757808646292,-155.06785267,0.00023333,2]
[385384752,1757808646301,-150.97755965,0.00023433,2]
[385384754,1757808646311,-1152.93204787,0.00023647,2]
[385384756,1757808646320,-152.445754,0.00023712,7]
[385384758,1757808646328,-160.0,0.00024117,2]
[385384760,1757808646337,-296.16163503,0.00024436,2]
[385384761,1757808646346,-2119.145404,0.00024436,2]
[385384764,1757808646362,-11902.42935133,0.00024436,2]
[385384790,1757809315098,496.10536122,0.00029984,50]
[385384791,1757809330315,3113.5,0.0001822,2]
[385385392,1757809838236,-312.73,0.00018925,2]
[385385394,1757809838246,-193.02395028,0.000199,2]
[385385492,1757809843635,-578.19761518,0.000199,2]
[385385493,1757809843693,-227.98620938,0.000199,2]
[385385494,1757809843702,-2065.91379062,0.0002,2]
[385385495,1757809843751,-1643.08620938,0.0002,2]
[385385497,1757809843761,-606.87635062,0.00021149,2]
[385385502,1757809846593,-392.3314242,0.00021149,2]
[385385503,1757809846612,-45.95027927,0.00022398,2]
[385385504,1757809846707,-953.25749555,0.00022398,2]
[385385505,1757809846717,-163.8,0.00022632,2]
[385385506,1757809846726,-163.8,0.00023551,2]
[385385507,1757809846736,-1200.0,0.00023646,2]
[385385508,1757809846745,-999.20777482,0.00023647,2]
[385385509,1757809846755,-168.0,0.00024259,2]
[385385510,1757809846764,-160.0,0.00024323,2]
[385385511,1757809846774,-498.0,0.00024434,2]
[385385512,1757809846783,-300.0,0.00024434,2]
[385385513,1757809846793,-300.0,0.00024434,2]
[385385514,1757809846802,-300.0,0.00024434,2]
[385385515,1757809846812,-300.0,0.00024434,2]
[385385516,1757809846821,-328.0,0.00024436,3]
[385385517,1757809846830,-328.0,0.00024436,3]
[385385518,1757809846839,-328.0,0.00024436,3]
[385385519,1757809846850,-328.0,0.00024436,3]
[385385520,1757809846860,-328.0,0.00024436,3]
[385385521,1757809846870,-328.0,0.00024436,3]
[385385522,1757809846879,-328.0,0.00024436,3]
[385385523,1757809846889,-328.0,0.00024436,3]
[385385524,1757809846898,-328.0,0.00024436,3]
[385385525,1757809846907,-347.02630628,0.00024457,2]
[385385526,1757809846917,-163.8,0.0002447,2]
[385385527,1757809846926,-5977.38850727,0.00024557,2]
[385385538,1757810231189,519.44,0.000268,120]
[385385586,1757811038393,-1359.87872435,0.00019116,2]
[385385598,1757811038446,-1032.61708873,0.00019116,2]
[385385600,1757811038458,-502.11282483,0.00019116,2]
[385385602,1757811038469,-417.88717517,0.00019116,2]
[385385604,1757811038481,-754.83309806,0.00019116,2]
[385385610,1757811038526,-932.67108886,0.00019116,2]
[385385612,1757811038535,-5000.0,0.00019309,2]
[385385614,1757811038544,-993.51121868,0.000198,2]
[385385616,1757811038554,-204.1524767,0.000198,2]
[385385618,1757811038563,-300.0,0.00019899,2]
[385385620,1757811038572,-1045.58107918,0.000199,2]
[385385622,1757811038582,-300.0,0.00020297,20]
[385385624,1757811038591,-300.0,0.00020297,20]
[385385626,1757811038600,-300.0,0.00020297,20]
[385385628,1757811038610,-300.0,0.00020297,20]
[385385630,1757811038619,-300.0,0.00020297,20]
[385385632,1757811038629,-300.0,0.00020297,20]
[385385633,1757811038638,-300.0,0.00020297,20]
[385385635,1757811038647,-300.0,0.00020297,20]
[385385637,1757811038656,-300.0,0.00020297,20]
[385385639,1757811038665,-300.0,0.00020297,20]
[385385641,1757811038674,-300.0,0.00020297,20]
[385385643,1757811038684,-300.0,0.00020297,20]
[385385646,1757811038693,-300.0,0.00020297,20]
[385385649,1757811038702,-300.0,0.00020297,20]
[385385652,1757811038711,-300.0,0.00020297,20]
[385385654,1757811038721,-600.0,0.00020702,20]
[385385656,1757811038731,-1045.58107902,0.00021149,2]
[385385658,1757811038740,-420.0,0.0002167,2]
[385385660,1757811038749,-1045.58107902,0.00022398,2]
[385385662,1757811038759,-720.0,0.00022772,20]
[385385665,1757811038772,-296.16163504,0.0002353,2]
[385385667,1757811038781,-4761.542815,0.0002353,2]
[385385668,1757811038790,-33777.6124075,0.0002353,2]
[385385670,1757811038800,-587.0,0.00023599,2]
[385385672,1757811038809,-1045.58107902,0.00023647,2]
[385385673,1757811038819,-160.0,0.00024072,2]
[385385674,1757811038828,-500.0,0.00024542,2]
[385385675,1757811038838,-500.0,0.00024542,2]
[385385676,1757811038847,-500.0,0.00024542,2]
[385385677,1757811038857,-500.0,0.00024542,2]
[385385678,1757811038866,-500.0,0.00024542,2]
[385385679,1757811038876,-500.0,0.00024542,2]
[385385680,1757811038885,-575.76469945,0.00024542,2]
[385385681,1757811038895,-79.42614772,0.00024542,2]
[385385682,1757811038906,-854.98665111,0.00024542,2]
[385385683,1757811038916,-4930.65442111,0.00024557,2]
[385385684,1757811038927,-13327.81726795,0.00024557,2]
[385385685,1757811038936,-2000.0,0.00024557,2]
[385385686,1757811038945,-2000.0,0.00024557,2]
[385385687,1757811038955,-2000.0,0.00024557,2]
[385385688,1757811038965,-688.85805445,0.00024557,2]
[385385690,1757811040813,-1311.14194555,0.00024557,2]
[385385691,1757811040823,-2000.0,0.00024557,2]
[385385692,1757811040832,-179.498,0.00024557,2]
[385385693,1757811040842,-561.08018938,0.00024557,2]
[385385694,1757811040851,-153.0,0.00024583,2]
[385385695,1757811040861,-153.0,0.00024583,2]
[385385696,1757811040872,-153.0,0.00024583,2]
[385385697,1757811041049,-153.0,0.00024583,2]
[385385698,1757811041060,-153.0,0.00024583,2]
[385385699,1757811041069,-153.0,0.00024583,2]
[385385700,1757811041079,-153.0,0.00024583,2]
[385385701,1757811041089,-153.0,0.00024583,2]
[385385702,1757811041099,-153.0,0.00024583,2]
[385385703,1757811041112,-153.0,0.00024583,2]
[385385704,1757811041122,-153.0,0.00024583,2]
[385385705,1757811041132,-153.0,0.00024583,2]
[385385706,1757811041142,-153.0,0.00024583,2]
[385385707,1757811041151,-153.0,0.00024583,2]
[385385708,1757811041160,-153.0,0.00024583,2]
[385385709,1757811041169,-153.0,0.00024583,2]
[385385710,1757811041178,-153.0,0.00024583,2]
[385385711,1757811041187,-153.0,0.00024583,2]
[385385712,1757811041195,-153.0,0.00024583,2]
[385385713,1757811041204,-153.0,0.00024583,2]
[385385714,1757811041212,-153.0,0.00024583,2]
[385385715,1757811041221,-153.0,0.00024583,2]
[385385716,1757811041230,-153.0,0.00024583,2]
[385385717,1757811041239,-153.0,0.00024583,2]
[385385718,1757811041248,-153.0,0.00024583,2]
[385385719,1757811041259,-153.0,0.00024583,2]
[385385720,1757811041269,-153.0,0.00024583,2]
[385385721,1757811041278,-153.0,0.00024583,2]
[385385722,1757811041288,-153.0,0.00024583,2]
[385385723,1757811041297,-153.0,0.00024583,2]
[385385724,1757811041306,-153.0,0.00024583,2]
[385385725,1757811041315,-153.0,0.00024583,2]
[385385726,1757811041324,-153.0,0.00024583,2]
[385385727,1757811041334,-153.0,0.00024583,2]
[385385728,1757811041343,-153.0,0.00024583,2]
[385385729,1757811041352,-150.524,0.00024589,7]
[385385730,1757811041362,-3000.0,0.000246,2]
[385385731,1757811041371,-151.0,0.000246,7]
[385385732,1757811041380,-151.0,0.000246,7]
[385385733,1757811041389,-151.0,0.000246,7]
[385385734,1757811041399,-3000.0,0.0002461,2]
[385385735,1757811041409,-500.0,0.0002461,2]
[385385736,1757811041419,-186.55293524,0.0002461,2]
[385385737,1757811041428,-186.48231975,0.0002461,2]
[385385738,1757811041437,-157.0,0.0002461,2]
[385385739,1757811041446,-915.0,0.0002461,2]
[385385740,1757811041455,-500.0,0.0002461,2]
[385385741,1757811041464,-3000.0,0.0002462,2]
[385385742,1757811041473,-225.431241,0.0002462,7]
[385385743,1757811041483,-151.780187,0.0002462,7]
[385385744,1757811041493,-151.0,0.0002462,7]
[385385745,1757811041503,-151.0,0.0002462,7]
[385385746,1757811041513,-151.0,0.0002462,7]
[385385747,1757811041524,-166.71298644,0.0002462,7]
[385385748,1757811041534,-3000.0,0.0002463,2]
[385385749,1757811041544,-5323.651864,0.0002464,2]
[385385750,1757811041553,-151.0,0.0002464,7]
[385385751,1757811041563,-151.0,0.0002464,7]
[385385752,1757811041573,-151.0,0.0002464,7]
[385385753,1757811041583,-459.03,0.00024647,3]
[385385754,1757811041592,-382.52,0.00024647,3]
[385385755,1757811041602,-382.52,0.00024647,3]
[385385756,1757811041612,-255.02,0.00024647,3]
[385385757,1757811041622,-212.51,0.00024647,3]
[385385758,1757811041632,-177.1,0.00024647,3]
[385385759,1757811041642,-885.5,0.00024647,3]
[385385760,1757811041652,-500.0,0.00024656,2]
[385385761,1757811041663,-500.0,0.00024656,2]
[385385762,1757811041675,-500.0,0.00024656,2]
[385385763,1757811041685,-500.0,0.00024656,2]
[385385764,1757811041696,-190.2966454,0.00024656,2]
[385385765,1757811041707,-500.0,0.00024656,2]
[385385766,1757811041716,-500.0,0.00024656,2]
[385385767,1757811041726,-214.45945547,0.00024656,2]
[385385768,1757811041736,-500.0,0.00024656,2]
[385385769,1757811041746,-500.0,0.00024656,2]
[385385770,1757811041755,-500.0,0.00024656,2]
[385385771,1757811041766,-500.0,0.00024656,2]
[385385772,1757811041779,-500.0,0.00024656,2]
[385385773,1757811041788,-500.0,0.00024656,2]
[385385774,1757811041799,-302.59135507,0.00024656,2]
[385385775,1757811041807,-520.23188639,0.00024656,2]
[385385776,1757811041817,-500.0,0.00024656,2]
[385385777,1757811041827,-211.22932022,0.00024656,2]
[385385778,1757811041836,-397.87949862,0.00024656,2]
[385385779,1757811041846,-239.90456,0.00024656,7]
[385385780,1757811041855,-151.0,0.00024656,7]
[385385781,1757811041864,-151.0,0.00024656,7]
[385385782,1757811041873,-500.0,0.00024656,2]
[385385783,1757811041883,-480.0,0.00024657,3]
[385385784,1757811041895,-480.0,0.00024657,3]
[385385785,1757811041904,-480.0,0.00024657,3]
[385385786,1757811041913,-480.0,0.00024657,3]
[385385787,1757811041923,-480.0,0.00024657,3]
[385385788,1757811041934,-366.59151439,0.00024657,3]
[385385789,1757811041944,-480.0,0.00024657,3]
[385385790,1757811041955,-480.0,0.00024657,3]
[385385791,1757811041965,-480.0,0.00024657,3]
[385385792,1757811041975,-480.0,0.00024657,3]
[385385793,1757811041985,-480.0,0.00024657,3]
[385385794,1757811041995,-246.21616653,0.00024657,3]
[385385795,1757811042006,-480.0,0.00024657,3]
[385385796,1757811042016,-480.0,0.00024657,3]
[385385797,1757811042031,-480.0,0.00024657,3]
[385385798,1757811042040,-480.0,0.00024657,3]
[385385799,1757811042050,-480.0,0.00024657,3]
[385385800,1757811042059,-480.0,0.00024657,3]
[385385801,1757811042069,-605.26,0.00024657,3]
[385385802,1757811042079,-656.36,0.00024657,3]
[385385803,1757811042088,-480.0,0.00024657,3]
[385385804,1757811042098,-480.0,0.00024657,3]
[385385805,1757811042108,-480.0,0.00024657,3]
[385385806,1757811042121,-480.0,0.00024657,3]
[385385807,1757811042131,-464.93071131,0.00024657,3]
[385385808,1757811042141,-480.0,0.00024657,3]
[385385809,1757811042151,-480.0,0.00024657,3]
[385385810,1757811042161,-480.0,0.00024657,3]
[385385811,1757811042171,-480.0,0.00024657,3]
[385385812,1757811042181,-480.0,0.00024657,3]
[385385813,1757811042191,-480.0,0.00024657,3]
[385385814,1757811042200,-480.0,0.00024657,3]
[385385815,1757811042209,-480.0,0.00024657,3]
[385385816,1757811042219,-480.0,0.00024657,3]
[385385817,1757811042228,-480.0,0.00024657,3]
[385385818,1757811042237,-480.0,0.00024657,3]
[385385819,1757811042246,-480.0,0.00024657,3]
[385385820,1757811042256,-480.0,0.00024657,3]
[385385821,1757811042265,-480.0,0.00024657,3]
[385385822,1757811042278,-480.0,0.00024657,3]
[385385823,1757811042287,-480.0,0.00024657,3]
[385385824,1757811042297,-480.0,0.00024657,3]
[385385825,1757811042306,-849.44,0.00024657,3]
[385385826,1757811042315,-480.0,0.00024657,3]
[385385827,1757811042325,-597.89987483,0.00024657,3]
[385385828,1757811042335,-480.0,0.00024657,3]
[385385829,1757811042344,-480.0,0.00024657,3]
[385385830,1757811042354,-699.01,0.00024657,3]
[385385831,1757811042363,-480.0,0.00024657,3]
[385385832,1757811042372,-480.0,0.00024657,3]